fUSD/lending_fUSD_20260529
["ID","MTS","AMOUNT","RATE_DAILY","PERIOD"]
[423344985,1780065072000,-4431.499608,0.00027397,2]
[423344980,1780065072000,-1000.0,0.00027397,20]
[423344953,1780065072000,-3638.0,0.00027044,2]
[423344973,1780065072000,-609.80586532,0.00027397,2]
[423344956,1780065072000,-7357.34,0.00027151,7]
[423344928,1780065072000,-200.0,0.00026377,2]
[423344954,1780065072000,-1356.0,0.00027044,2]
[423344938,1780065072000,-1124.0,0.00026515,2]
[423344929,1780065072000,-3141.402971,0.00026384,2]
[423344930,1780065072000,-3141.402971,0.00026384,2]
[423344934,1780065072000,-3141.402971,0.00026384,2]
[423344932,1780065072000,-3141.402971,0.00026384,2]
[423344933,1780065072000,-3141.402971,0.00026384,2]
[423344935,1780065072000,-3141.402971,0.00026384,2]
[423344931,1780065072000,-3141.402971,0.00026384,2]
[423344937,1780065072000,-253.36519863,0.00026397,2]
[423344936,1780065072000,-3141.402971,0.00026384,2]
[423344939,1780065072000,-5664.52,0.00026666,14]
[423344941,1780065072000,-500.0,0.00026685,2]
[423344949,1780065072000,-219.0,0.00027016,2]
[423344940,1780065072000,-403.62609319,0.00026682,2]
[423344948,1780065072000,-150.0,0.00027016,2]
[423344950,1780065072000,-1272.0,0.00027044,2]
[423344942,1780065072000,-979.73,0.000267,7]
[423344947,1780065072000,-280.0,0.00027016,2]
[423344943,1780065072000,-996.0,0.00026746,3]
[423344946,1780065072000,-778.56013732,0.00027,2]
[423344944,1780065072000,-2000.0,0.00027,14]
[423344945,1780065072000,-960.36867786,0.00027,5]
[423344951,1780065072000,-503.0,0.00027044,2]
[423344952,1780065072000,-1225.0,0.00027044,2]
[423344957,1780065072000,-310.43374218,0.0002719,2]
[423344960,1780065072000,-1148.93,0.00027214,7]
[423344981,1780065072000,-4431.499608,0.00027397,2]
[423344955,1780065072000,-200.0,0.0002709,2]
[423344987,1780065072000,-4431.499608,0.00027397,2]
[423345013,1780065072000,-150.0,0.00027685,2]
[423344992,1780065072000,-6580.74,0.000274,7]
[423345022,1780065072000,-974.56,0.00027711,7]
[423345018,1780065072000,-2542.75,0.00027711,7]
[423345023,1780065072000,-418.85,0.00027733,2]
[423345026,1780065072000,-420.32,0.00027763,7]
[423345036,1780065072000,-1124.0,0.00027841,5]
[423345037,1780065072000,-418.85,0.00027855,7]
[423345025,1780065072000,-418.85,0.00027763,7]
[423345027,1780065072000,-200.0,0.0002778,2]
[423345028,1780065072000,-200.0,0.0002778,2]
[423345034,1780065072000,-418.85,0.00027824,2]
[423345035,1780065072000,-420.32,0.00027824,2]
[423345033,1780065072000,-420.32,0.00027794,30]
[423345031,1780065072000,-200.0,0.0002778,2]
[423345029,1780065072000,-200.0,0.0002778,2]
[423345030,1780065072000,-200.0,0.0002778,2]
[423345032,1780065072000,-418.85,0.00027794,30]
[423345038,1780065072000,-420.32,0.00027855,7]
[423345040,1780065072000,-6085.84,0.00027872,2]
[423345043,1780065072000,-5445.81,0.00027872,2]
[423345041,1780065072000,-2542.75,0.00027872,2]
[423345042,1780065072000,-5900.18,0.00027872,2]
[423345045,1780065072000,-974.56,0.00027872,2]
[423345039,1780065072000,-996.0,0.00027856,4]
[423345044,1780065072000,-4244.23,0.00027872,2]
[423345048,1780065072000,-420.32,0.00027885,30]
[423345046,1780065072000,-200.0,0.00027884,2]
[423345047,1780065072000,-418.85,0.00027885,30]
[423345014,1780065072000,-150.0,0.00027702,2]
[423345015,1780065072000,-418.85,0.00027702,30]
[423344988,1780065072000,-4431.499608,0.00027397,2]
[423345017,1780065072000,-6085.84,0.00027711,7]
[423345021,1780065072000,-4244.23,0.00027711,7]
[423344990,1780065072000,-151.0,0.00027397,2]
[423344989,1780065072000,-151.0,0.00027397,2]
[423344991,1780065072000,-38406.29,0.00027397,10]
[423344998,1780065072000,-5900.18,0.0002755,30]
[423344997,1780065072000,-2542.75,0.0002755,30]
[423344995,1780065072000,-150.0,0.00027521,2]
[423344993,1780065072000,-3650.25,0.000274,7]
[423344996,1780065072000,-6085.84,0.0002755,30]
[423345000,1780065072000,-5445.81,0.0002755,30]
[423345001,1780065072000,-4244.23,0.0002755,30]
[423344999,1780065072000,-418.85,0.0002755,2]
[423345011,1780065072000,-418.85,0.00027672,7]
[423344994,1780065072000,-50339.39,0.000274,14]
[423345002,1780065072000,-974.56,0.0002755,30]
[423345010,1780065072000,-536.338243,0.00027671,30]
[423345019,1780065072000,-5900.18,0.00027711,7]
[423345024,1780065072000,-420.32,0.00027733,2]
[423345016,1780065072000,-420.32,0.00027702,30]
[423345008,1780065072000,-418.85,0.00027641,2]
[423345005,1780065072000,-420.32,0.0002758,7]
[423345012,1780065072000,-420.32,0.00027672,7]
[423345020,1780065072000,-5445.81,0.00027711,7]
[423345004,1780065072000,-418.85,0.0002758,7]
[423345003,1780065072000,-420.32,0.0002755,2]
[423345007,1780065072000,-420.32,0.00027611,30]
[423345009,1780065072000,-420.32,0.00027641,2]
[423345006,1780065072000,-418.85,0.00027611,30]
[423345092,1780065073000,-302.46,0.00028082,2]
[423345089,1780065073000,-420.32,0.00028068,30]
[423345090,1780065073000,-150.0,0.00028082,2]
[423345088,1780065073000,-418.85,0.00028068,30]
[423345086,1780065073000,-418.85,0.00028038,7]
[423345080,1780065073000,-6085.84,0.00028033,30]
[423345082,1780065073000,-5900.18,0.00028033,30]
[423345079,1780065073000,-874.0,0.0002803,7]
[423345083,1780065073000,-5445.81,0.00028033,30]
[423345084,1780065073000,-4244.23,0.00028033,30]
[423345091,1780065073000,-213.0,0.00028082,2]
[423345081,1780065073000,-2542.75,0.00028033,30]
[423345094,1780065073000,-2500.0,0.00028082,120]
[423345107,1780065073000,-3226.0,0.000281,7]
[423345097,1780065073000,-1000.0,0.00028082,120]
[423345087,1780065073000,-420.32,0.00028038,7]
[423345096,1780065073000,-2500.0,0.00028082,120]
[423345093,1780065073000,-356.73298615,0.00028082,2]
[423345099,1780065073000,-1000.0,0.00028082,3]
[423345098,1780065073000,-2500.0,0.00028082,120]
[423345109,1780065073000,-420.5,0.0002813,7]
[423345101,1780065073000,-1000.0,0.00028082,3]
[423345100,1780065073000,-1000.0,0.00028082,3]
[423345102,1780065073000,-1000.0,0.00028082,3]
[423345103,1780065073000,-418.85,0.00028099,2]
[423345104,1780065073000,-420.32,0.00028099,2]
[423345078,1780065073000,-1172.31,0.0002803,7]
[423345095,1780065073000,-1000.0,0.00028082,120]
[423345076,1780065073000,-1136.38,0.0002803,7]
[423345069,1780065073000,-209.09056759,0.00028,10]
[423345074,1780065073000,-418.85,0.00028007,2]
[423345106,1780065073000,-3650.25,0.000281,7]
[423345049,1780065073000,-50339.39,0.000279,14]
[423345051,1780065073000,-418.85,0.00027916,2]
[423345050,1780065073000,-150.0,0.000279,2]
[423345053,1780065073000,-446.94853584,0.00027945,30]
[423345058,1780065073000,-150.0,0.00027982,2]
[423345056,1780065073000,-418.85,0.00027977,30]
[423345054,1780065073000,-418.85,0.00027946,7]
[423345060,1780065073000,-778.0,0.00027989,10]
[423345052,1780065073000,-420.32,0.00027916,2]
[423345059,1780065073000,-150.0,0.00027982,2]
[423345057,1780065073000,-420.32,0.00027977,30]
[423345055,1780065073000,-420.32,0.00027946,7]
[423345061,1780065073000,-200.0,0.00028,7]
[423345063,1780065073000,-576.8097954,0.00028,2]
[423345065,1780065073000,-5294.77385717,0.00028,60]
[423345066,1780065073000,-160.0,0.00028,2]
[423345073,1780065073000,-215.5484138,0.00028,30]
[423345064,1780065073000,-2393.57376006,0.00028,30]
[423345067,1780065073000,-643.0,0.00028,2]
[423345068,1780065073000,-209.09056759,0.00028,30]
[423345071,1780065073000,-160.0,0.00028,30]
[423345062,1780065073000,-22142.45254127,0.00028,5]
[423345072,1780065073000,-160.0,0.00028,10]
[423345070,1780065073000,-600.0,0.00028,2]
[423345075,1780065073000,-420.32,0.00028007,2]
[423345085,1780065073000,-974.56,0.00028033,30]
[423345077,1780065073000,-1114.47,0.0002803,7]
[423345108,1780065073000,-418.87,0.0002813,7]
[423345105,1780065073000,-6580.74,0.000281,7]
[423345112,1780065073000,-5900.18,0.00028194,7]
[423345147,1780065073000,-158.81553262,0.00028563,7]
[423345144,1780065073000,-195.33746677,0.00028563,7]
[423345146,1780065073000,-153.02264896,0.00028563,7]
[423345141,1780065073000,-168.50294931,0.00028563,7]
[423345145,1780065073000,-154.52712352,0.00028563,7]
[423345143,1780065073000,-176.83064221,0.00028563,7]
[423345159,1780065073000,-205.55738274,0.00028585,7]
[423345149,1780065073000,-165.28783929,0.00028563,7]
[423345148,1780065073000,-153.44131016,0.00028563,7]
[423345151,1780065073000,-162.03706712,0.00028563,7]
[423345150,1780065073000,-208.83692504,0.00028563,7]
[423345156,1780065073000,-183.46660165,0.00028579,7]
[423345153,1780065073000,-186.43361922,0.00028563,7]
[423345152,1780065073000,-177.35345015,0.00028563,7]
[423345155,1780065073000,-205.56743579,0.00028563,7]
[423345154,1780065073000,-159.08763722,0.00028563,7]
[423345158,1780065073000,-169.0287855,0.00028585,7]
[423345157,1780065073000,-175.22707843,0.00028585,7]
[423345160,1780065073000,-173.82004018,0.00028585,7]
[423345162,1780065073000,-152.71296028,0.00028585,7]
[423345163,1780065073000,-190.8630936,0.00028585,7]
[423345164,1780065073000,-200.04971125,0.00028585,7]
[423345161,1780065073000,-265.99340477,0.00028585,7]
[423345168,1780065073000,-177.08891769,0.00028585,7]
[423345165,1780065073000,-165.10172846,0.00028585,7]
[423345167,1780065073000,-176.01750137,0.00028585,2]
[423345169,1780065073000,-170.04649441,0.00028585,7]
[423345142,1780065073000,-169.410686,0.00028563,7]
[423345140,1780065073000,-158.62281654,0.00028563,7]
[423345166,1780065073000,-323.57948117,0.00028585,7]
[423345139,1780065073000,-191.11977874,0.00028563,7]
[423345136,1780065073000,-4244.23,0.00028516,30]
[423345113,1780065073000,-5445.81,0.00028194,7]
[423345116,1780065073000,-200.0,0.000282,7]
[423345111,1780065073000,-2542.75,0.00028194,7]
[423345110,1780065073000,-6085.84,0.00028194,7]
[423345115,1780065073000,-974.56,0.00028194,7]
[423345118,1780065073000,-7567.4,0.00028267,2]
[423345121,1780065073000,-50339.39,0.000283,14]
[423345117,1780065073000,-979.73,0.000282,7]
[423345119,1780065073000,-199.70197265,0.00028267,2]
[423345120,1780065073000,-444.2510982,0.00028297,120]
[423345122,1780065073000,-6085.84,0.00028355,2]
[423345124,1780065073000,-5900.18,0.00028355,2]
[423345114,1780065073000,-4244.23,0.00028194,7]
[423345134,1780065073000,-2542.75,0.00028516,30]
[423345138,1780065073000,-206.79353255,0.00028563,5]
[423345137,1780065073000,-974.56,0.00028516,30]
[423345135,1780065073000,-5900.18,0.00028516,30]
[423345131,1780065073000,-500.0,0.00028493,7]
[423345123,1780065073000,-2542.75,0.00028355,2]
[423345132,1780065073000,-168.09,0.00028493,2]
[423345130,1780065073000,-996.0,0.00028411,5]
[423345127,1780065073000,-974.56,0.00028355,2]
[423345128,1780065073000,-357.55882867,0.00028356,30]
[423345129,1780065073000,-200.0,0.000284,7]
[423345126,1780065073000,-4244.23,0.00028355,2]
[423345125,1780065073000,-5445.81,0.00028355,2]
[423345133,1780065073000,-5283.11,0.00028516,30]
[423345207,1780065074000,-292.0,0.00028767,30]
[423345214,1780065074000,-1101.23,0.00028846,7]
[423345206,1780065074000,-150.0,0.00028767,30]
[423345216,1780065074000,-1136.05,0.00028846,7]
[423345200,1780065074000,-500.0,0.00028767,120]
[423345215,1780065074000,-1080.0,0.00028846,7]
[423345205,1780065074000,-150.0,0.00028767,30]
[423345201,1780065074000,-500.0,0.00028767,120]
[423345202,1780065074000,-500.0,0.00028767,120]
[423345192,1780065074000,-50339.39,0.000287,14]
[423345204,1780065074000,-150.0,0.00028767,30]
[423345213,1780065074000,-974.56,0.00028838,2]
[423345226,1780065074000,-545.25,0.00029,2]
[423345209,1780065074000,-2198.0,0.00028767,120]
[423345212,1780065074000,-2542.75,0.00028838,2]
[423345210,1780065074000,-209.09056759,0.000288,30]
[423345208,1780065074000,-268.1691215,0.00028767,30]
[423345218,1780065074000,-150.0,0.00028855,2]
[423345217,1780065074000,-846.98,0.00028846,7]
[423345219,1780065074000,-150.0,0.00028855,2]
[423345227,1780065074000,-545.28,0.00029,2]
[423345228,1780065074000,-545.25,0.00029,2]
[423345229,1780065074000,-545.25,0.00029,2]
[423345221,1780065074000,-1000.0,0.00028872,18]
[423345203,1780065074000,-648.81035998,0.00028767,120]
[423345224,1780065074000,-167.00015065,0.00028971,2]
[423345211,1780065074000,-209.09056759,0.000288,10]
[423345198,1780065074000,-500.0,0.00028767,120]
[423345183,1780065074000,-152.28468194,0.00028619,7]
[423345199,1780065074000,-500.0,0.00028767,120]
[423345222,1780065074000,-150.0,0.00028897,2]
[423345171,1780065074000,-189.4223681,0.00028585,7]
[423345170,1780065074000,-177.12688913,0.00028585,7]
[423345173,1780065074000,-342.36099492,0.00028585,7]
[423345174,1780065074000,-371.90258911,0.00028585,7]
[423345172,1780065074000,-172.18046261,0.00028585,7]
[423345177,1780065074000,-199.70068572,0.00028602,7]
[423345175,1780065074000,-253.2423139,0.000286,20]
[423345178,1780065074000,-187.75190103,0.00028602,7]
[423345176,1780065074000,-165.02368299,0.00028602,7]
[423345180,1780065074000,-202.25494561,0.00028602,7]
[423345179,1780065074000,-197.14485582,0.00028602,7]
[423345195,1780065074000,-500.0,0.00028767,120]
[423345184,1780065074000,-205.81059355,0.00028619,7]
[423345181,1780065074000,-152.74726053,0.00028602,7]
[423345189,1780065074000,-200.0,0.00028677,2]
[423345187,1780065074000,-2542.75,0.00028677,7]
[423345186,1780065074000,-1338.33626677,0.00028646,15]
[423345185,1780065074000,-177.01374539,0.00028619,7]
[423345188,1780065074000,-974.56,0.00028677,7]
[423345190,1780065074000,-6580.74,0.000287,7]
[423345191,1780065074000,-3650.25,0.000287,7]
[423345193,1780065074000,-1561.02,0.00028767,30]
[423345196,1780065074000,-500.0,0.00028767,120]
[423345194,1780065074000,-500.0,0.00028767,120]
[423345197,1780065074000,-500.0,0.00028767,120]
[423345182,1780065074000,-150.49798279,0.00028619,7]
[423345220,1780065074000,-4159.0,0.00028856,2]
[423345236,1780065074000,-2382.26336414,0.00029,2]
[423345223,1780065074000,-996.0,0.00028965,6]
[423345260,1780065074000,-630.78,0.00029,2]
[423345261,1780065074000,-188.04354395,0.00029,2]
[423345263,1780065074000,-2013.0843362,0.00029,2]
[423345262,1780065074000,-219.53728179,0.00029,2]
[423345259,1780065074000,-542.03489599,0.00029,2]
[423345265,1780065074000,-510.66835475,0.00029,2]
[423345264,1780065074000,-643.98489832,0.00029,2]
[423345269,1780065074000,-3226.0,0.00029,7]
[423345278,1780065074000,-1616.04427614,0.00029,2]
[423345279,1780065074000,-160.0,0.00029,2]
[423345270,1780065074000,-630.78,0.00029,2]
[423345268,1780065074000,-5000.0,0.00029,2]
[423345257,1780065074000,-391.22,0.00029,7]
[423345271,1780065074000,-630.78,0.00029,2]
[423345272,1780065074000,-2988.84,0.00029,30]
[423345275,1780065074000,-630.78,0.00029,2]
[423345273,1780065074000,-1000.0,0.00029,2]
[423345276,1780065074000,-2542.78,0.00029,30]
[423345282,1780065074000,-156.0,0.00029,2]
[423345281,1780065074000,-156.0,0.00029,2]
[423345280,1780065074000,-156.0,0.00029,2]
[423345284,1780065074000,-156.0,0.00029,2]
[423345283,1780065074000,-156.0,0.00029,2]
[423345287,1780065074000,-157.0,0.00029,2]
[423345285,1780065074000,-156.0,0.00029,2]
[423345225,1780065074000,-188.44606373,0.00028971,2]
[423345277,1780065074000,-1000.0,0.00029,2]
[423345255,1780065074000,-1000.0,0.00029,2]
[423345274,1780065074000,-2155.1413647,0.00029,2]
[423345267,1780065074000,-76619.36389828,0.00029,2]
[423345231,1780065074000,-724.6,0.00029,2]
[423345258,1780065074000,-391.22,0.00029,6]
[423345238,1780065074000,-2500.0,0.00029,2]
[423345239,1780065074000,-1000.0,0.00029,2]
[423345240,1780065074000,-273.3521427,0.00029,2]
[423345230,1780065074000,-1443.48,0.00029,2]
[423345242,1780065074000,-630.79,0.00029,2]
[423345241,1780065074000,-2500.0,0.00029,2]
[423345232,1780065074000,-2500.0,0.00029,2]
[423345234,1780065074000,-743.86583086,0.00029,2]
[423345235,1780065074000,-10000.0,0.00029,2]
[423345286,1780065074000,-167.0,0.00029,2]
[423345237,1780065074000,-1013.15,0.00029,2]
[423345243,1780065074000,-11591.88,0.00029,2]
[423345233,1780065074000,-1000.0,0.00029,2]
[423345256,1780065074000,-391.22,0.00029,7]
[423345266,1780065074000,-2285.6951678,0.00029,120]
[423345251,1780065074000,-930.00005811,0.00029,2]
[423345250,1780065074000,-930.00116213,0.00029,2]
[423345248,1780065074000,-930.46485108,0.00029,2]
[423345249,1780065074000,-930.02324255,0.00029,2]
[423345247,1780065074000,-939.2970216,0.00029,2]
[423345246,1780065074000,-1115.94043199,0.00029,2]
[423345244,1780065074000,-10000.0,0.00029,2]
[423345254,1780065074000,-930.00000001,0.00029,2]
[423345252,1780065074000,-930.00000291,0.00029,2]
[423345253,1780065074000,-930.00000015,0.00029,2]
[423345245,1780065074000,-1000.0,0.00029,2]
[423345327,1780065075000,-1665.51561982,0.000295,56]
[423345338,1780065075000,-426.01737034,0.0002955,2]
[423345329,1780065075000,-1930.27023263,0.000295,56]
[423345328,1780065075000,-1858.37210958,0.000295,56]
[423345325,1780065075000,-741.96120126,0.000295,56]
[423345318,1780065075000,-1124.0,0.00029233,5]
[423345324,1780065075000,-741.96120126,0.000295,56]
[423345322,1780065075000,-1000.0,0.00029498,37]
[423345320,1780065075000,-178.77941433,0.00029452,30]
[423345321,1780065075000,-200.0,0.0002947,2]
[423345336,1780065075000,-979.73,0.000295,7]
[423345323,1780065075000,-1000.0,0.00029499,56]
[423345330,1780065075000,-2048.66202049,0.000295,56]
[423345351,1780065075000,-912.0,0.00029802,30]
[423345334,1780065075000,-2877.2569616,0.000295,56]
[423345337,1780065075000,-996.0,0.0002952,6]
[423345331,1780065075000,-2048.66202049,0.000295,56]
[423345333,1780065075000,-2241.25816214,0.000295,56]
[423345332,1780065075000,-2241.25816214,0.000295,56]
[423345335,1780065075000,-2877.2569616,0.000295,56]
[423345341,1780065075000,-302.0,0.000297,3]
[423345340,1780065075000,-188.44606373,0.00029623,2]
[423345342,1780065075000,-154.0,0.000297,3]
[423345350,1780065075000,-818.0,0.00029802,30]
[423345349,1780065075000,-2696.0,0.00029802,30]
[423345319,1780065075000,-1000.0,0.00029248,19]
[423345339,1780065075000,-200.0,0.00029556,2]
[423345316,1780065075000,-500.0,0.00029143,11]
[423345288,1780065075000,-157.0,0.00029,2]
[423345317,1780065075000,-500.0,0.00029143,11]
[423345289,1780065075000,-157.0,0.00029,2]
[423345343,1780065075000,-1000.0,0.000297,7]
[423345291,1780065075000,-157.0,0.00029,2]
[423345290,1780065075000,-157.0,0.00029,2]
[423345292,1780065075000,-157.0,0.00029,2]
[423345297,1780065075000,-974.6,0.00029,30]
[423345301,1780065075000,-2014.53324,0.00029,2]
[423345294,1780065075000,-157.0,0.00029,2]
[423345299,1780065075000,-193.88359574,0.00029,2]
[423345293,1780065075000,-157.0,0.00029,2]
[423345296,1780065075000,-157.0,0.00029,2]
[423345298,1780065075000,-7357.34,0.00029,7]
[423345295,1780065075000,-157.0,0.00029,2]
[423345326,1780065075000,-1665.51561982,0.000295,56]
[423345300,1780065075000,-2014.53324,0.00029,2]
[423345302,1780065075000,-2014.53324,0.00029,2]
[423345310,1780065075000,-500.0,0.00029143,11]
[423345308,1780065075000,-402.83,0.000291,2]
[423345307,1780065075000,-200.04,0.000291,2]
[423345305,1780065075000,-316.92418714,0.00029,2]
[423345309,1780065075000,-500.0,0.00029143,11]
[423345314,1780065075000,-500.0,0.00029143,11]
[423345304,1780065075000,-2014.53324,0.00029,2]
[423345315,1780065075000,-500.0,0.00029143,11]
[423345311,1780065075000,-500.0,0.00029143,11]
[423345312,1780065075000,-500.0,0.00029143,11]
[423345306,1780065075000,-2000.0,0.00029037,2]
[423345313,1780065075000,-500.0,0.00029143,11]
[423345303,1780065075000,-2014.53324,0.00029,2]
[423345344,1780065075000,-153.0,0.000297,3]
[423345357,1780065075000,-500.0,0.00029863,7]
[423345346,1780065075000,-1658.0,0.00029802,30]
[423345380,1780065075000,-324.07413425,0.00029899,7]
[423345385,1780065075000,-411.13487159,0.00029899,7]
[423345386,1780065075000,-14712.28151701,0.000299,2]
[423345382,1780065075000,-354.70690029,0.00029899,7]
[423345383,1780065075000,-372.86723845,0.00029899,7]
[423345384,1780065075000,-318.17527444,0.00029899,7]
[423345387,1780065075000,-366.93320331,0.00029916,7]
[423345390,1780065075000,-411.11476548,0.00029922,7]
[423345396,1780065075000,-330.20345693,0.00029922,7]
[423345402,1780065075000,-354.25377826,0.00029922,7]
[423345400,1780065075000,-151.12671918,0.00029922,7]
[423345392,1780065075000,-305.42592057,0.00029922,7]
[423345391,1780065075000,-347.64008036,0.00029922,7]
[423345345,1780065075000,-879.0,0.00029802,30]
[423345399,1780065075000,-354.17783539,0.00029922,7]
[423345401,1780065075000,-340.09298883,0.00029922,7]
[423345395,1780065075000,-400.0994225,0.00029922,7]
[423345394,1780065075000,-240.32157197,0.00029922,7]
[423345398,1780065075000,-231.85378954,0.00029922,7]
[423345397,1780065075000,-352.03500275,0.00029922,2]
[423345404,1780065075000,-180.66670105,0.00029922,5]
[423345403,1780065075000,-378.8447362,0.00029922,7]
[423345408,1780065075000,-1066.09,0.00029935,7]
[423345405,1780065075000,-344.36092522,0.00029922,7]
[423345407,1780065075000,-743.80517822,0.00029922,7]
[423345409,1780065075000,-1045.53,0.00029935,7]
[423345406,1780065075000,-684.72198984,0.00029922,7]
[423345381,1780065075000,-187.37709945,0.00029899,7]
[423345379,1780065075000,-330.57567857,0.00029899,7]
[423345393,1780065075000,-381.7261872,0.00029922,7]
[423345388,1780065075000,-350.45415685,0.00029922,7]
[423345389,1780065075000,-338.05757099,0.00029922,7]
[423345347,1780065075000,-584.0,0.00029802,30]
[423345348,1780065075000,-571.0,0.00029802,30]
[423345362,1780065075000,-382.23955748,0.00029899,7]
[423345363,1780065075000,-317.24563307,0.00029899,7]
[423345364,1780065075000,-337.00589862,0.00029899,7]
[423345352,1780065075000,-5486.0,0.00029802,30]
[423345355,1780065075000,-219.0,0.00029814,30]
[423345353,1780065075000,-352.0,0.00029814,30]
[423345360,1780065075000,-576.83708468,0.00029899,7]
[423345358,1780065075000,-500.0,0.00029869,120]
[423345359,1780065075000,-168.69000495,0.00029899,7]
[423345356,1780065075000,-878.0,0.00029823,30]
[423345361,1780065075000,-413.5870651,0.00029899,5]
[423345354,1780065075000,-334.0,0.00029814,30]
[423345367,1780065075000,-195.09795569,0.00029899,7]
[423345378,1780065075000,-417.67385008,0.00029899,7]
[423345365,1780065075000,-338.82137199,0.00029899,7]
[423345375,1780065075000,-152.55379499,0.00029899,7]
[423345371,1780065075000,-306.04529791,0.00029899,7]
[423345377,1780065075000,-242.27716993,0.00029899,7]
[423345372,1780065075000,-353.66128442,0.00029899,7]
[423345370,1780065075000,-309.05424705,0.00029899,7]
[423345374,1780065075000,-306.88262031,0.00029899,7]
[423345376,1780065075000,-174.11467666,0.00029899,7]
[423345369,1780065075000,-220.18842306,0.00029899,7]
[423345368,1780065075000,-390.67493354,0.00029899,7]
[423345366,1780065075000,-176.47010589,0.00029899,7]
[423345373,1780065075000,-317.63106525,0.00029899,7]
[423345427,1780065076000,-368.30440275,0.0003,30]
[423345430,1780065076000,-228.61382699,0.0003,120]
[423345432,1780065076000,-342.09068401,0.0003,120]
[423345439,1780065076000,-1850.5020644,0.0003,2]
[423345433,1780065076000,-4449.37390831,0.0003,120]
[423345429,1780065076000,-1000.0,0.0003,2]
[423345440,1780065076000,-587.29129787,0.0003,4]
[423345437,1780065076000,-327.059999,0.0003,11]
[423345435,1780065076000,-6541.15423561,0.0003,2]
[423345434,1780065076000,-516.23044344,0.0003,30]
[423345436,1780065076000,-12881.58991453,0.0003,10]
[423345441,1780065076000,-650.7916003,0.0003,120]
[423345438,1780065076000,-1123.88887539,0.0003,2]
[423345431,1780065076000,-368.30440275,0.0003,30]
[423345428,1780065076000,-1000.0,0.0003,120]
[423345413,1780065076000,-399.40137145,0.0002994,7]
[423345422,1780065076000,-185.27180721,0.00029957,2]
[423345446,1780065076000,-170.31631977,0.0003,120]
[423345412,1780065076000,-200.21566514,0.0002994,7]
[423345414,1780065076000,-375.50380206,0.0002994,7]
[423345410,1780065076000,-1099.79,0.00029935,7]
[423345411,1780065076000,-330.04736597,0.0002994,7]
[423345416,1780065076000,-404.50989122,0.0002994,7]
[423345425,1780065076000,-241.3416332,0.0002999,2]
[423345415,1780065076000,-394.28971165,0.0002994,7]
[423345418,1780065076000,-305.49452106,0.0002994,7]
[423345420,1780065076000,-304.56936387,0.00029957,7]
[423345419,1780065076000,-300.99596558,0.00029957,7]
[423345426,1780065076000,-1000.0,0.00029998,38]
[423345424,1780065076000,-354.02749078,0.00029957,7]
[423345423,1780065076000,-411.62118709,0.00029957,7]
[423345417,1780065076000,-241.13361198,0.0002994,7]
[423345448,1780065076000,-165.9589188,0.0003,2]
[423345421,1780065076000,-174.47523396,0.00029957,7]
[423345444,1780065076000,-2045.37873131,0.0003,120]
[423345465,1780065076000,-503.0,0.00030044,2]
[423345477,1780065076000,-645.4828371,0.0003013,2]
[423345466,1780065076000,-1225.0,0.00030044,2]
[423345464,1780065076000,-938.618,0.00030044,2]
[423345467,1780065076000,-3638.0,0.00030044,2]
[423345472,1780065076000,-1093.0549929,0.0003013,2]
[423345463,1780065076000,-215.5484138,0.0003,30]